bitfinex/quotes_SOLUSD_20251031
["timestamp","ask_amount","ask_price","bid_price","bid_amount"]
[1761939112277,0.72,187.64,187.6,6.52710957]
[1761939113474,2.13163387,187.67,187.62,2.13163387]
[1761939113682,0.72,187.64,187.62,2.13163387]
[1761939114296,102.44216157,187.76,187.63,2.13163387]
[1761939114297,0.72,187.69,187.63,2.13163387]
[1761939114461,0.72,187.69,187.67,2.13163387]
[1761939114773,0.72,187.71,187.68,2.13163387]
[1761939115387,0.72,187.71,187.67,6.09389161]
[1761939117869,0.72,187.71,187.68,2.13163387]
[1761939118399,0.72,187.71,187.67,3.96225774]
[1761939118400,0.72,187.73,187.7,2.13163387]
[1761939118780,0.72,187.73,187.67,8.35514753]
[1761939118781,0.72,187.75,187.71,2.13163387]
[1761939118983,2.13163387,187.77,187.71,2.13163387]
[1761939119200,0.72,187.76,187.71,2.13163387]
[1761939119395,0.72,187.76,187.69,4.39288979]
[1761939119613,2.13163387,187.75,187.69,2.13163387]
[1761939119804,0.72,187.76,187.71,2.13163387]
[1761939120102,0.72,187.75,187.71,2.13163387]
[1761939121001,0.72,187.75,187.68,4.39288979]
[1761939121206,2.13163387,187.74,187.68,2.13163387]
[1761939121812,0.72,187.77,187.7,4.39288979]
[1761939122096,0.72,187.77,187.75,2.13163387]
[1761939122506,0.72,187.77,187.73,4.39288979]
[1761939122507,0.72,187.82,187.76,2.13163387]
[1761939122687,0.72,187.82,187.78,2.13163387]
[1761939123001,2.85163387,187.82,187.76,7.9734096]
[1761939123204,0.72,187.82,187.76,5.84177573]
[1761939123421,0.72,187.81,187.77,2.13163387]
[1761939123798,0.72,187.81,187.78,2.13163387]
[1761939124109,9.66741568,187.83,187.79,2.13163387]
[1761939124304,9.66741568,187.83,187.76,11.1677156]
[1761939124305,9.66741568,187.83,187.8,2.13163387]
[1761939124523,9.66741568,187.83,187.78,4.39288979]
[1761939124833,9.66741568,187.83,187.81,2.13163387]
[1761939125331,0.72,187.82,187.79,2.13163387]
[1761939125639,0.72,187.82,187.78,4.39288979]
[1761939125801,2.85163387,187.82,187.76,12.36629939]
[1761939126007,0.72,187.81,187.76,7.9734096]
[1761939126404,2.13163387,187.8,187.76,5.84177573]
[1761939126820,0.72,187.79,187.76,5.84177573]
[1761939127328,0.72,187.79,187.74,2.13163387]
[1761939127329,2.85163387,187.79,187.74,2.13163387]
[1761939127503,2.85163387,187.79,187.74,5.84177573]
[1761939127504,2.13163387,187.78,187.74,5.84177573]
[1761939127705,2.13163387,187.75,187.74,5.84177573]
[1761939128006,2.13163387,187.75,187.71,5.32440221]
[1761939128212,2.13163387,187.73,187.71,5.32440221]
[1761939128403,2.13163387,187.73,187.69,4.39288979]
[1761939128617,0.72,187.72,187.7,5.32440221]
[1761939128924,0.72,187.72,187.69,4.39288979]
[1761939129142,2.13163387,187.71,187.69,9.717292]
[1761939129301,2.13163387,187.7,187.67,4.39288979]
[1761939129505,2.13163387,187.7,187.65,4.39288979]
[1761939129726,0.72,187.69,187.67,9.717292]
[1761939129935,2.13163387,187.68,187.67,9.717292]
[1761939130228,2.13163387,187.68,187.63,4.39288979]
[1761939130527,0.72,187.7,187.65,2.13163387]
[1761939130909,2.85163387,187.7,187.64,7.45890953]
[1761939131239,0.72,187.7,187.66,2.13163387]
[1761939131414,5.42296471,187.7,187.65,5.42296471]
[1761939131616,0.72,187.69,187.64,4.39288979]
[1761939131916,6.14296471,187.69,187.64,4.39288979]
[1761939132323,0.72,187.68,187.64,4.39288979]
[1761939133240,6.14296471,187.68,187.64,4.39288979]
[1761939133610,0.72,187.67,187.64,4.39288979]
[1761939134229,6.14296471,187.67,187.64,4.39288979]
[1761939134436,5.42296471,187.65,187.62,4.39288979]
[1761939134610,6.14296471,187.64,187.6,4.39288979]
[1761939134936,5.42296471,187.63,187.6,4.39288979]
[1761939135230,0.72,187.64,187.6,4.39288979]
[1761939138932,6.14296471,187.64,187.6,4.39288979]
[1761939139338,0.72,187.63,187.6,4.39288979]
[1761939139835,5.42296471,187.62,187.59,4.39288979]
[1761939140161,0.72,187.63,187.59,4.39288979]
[1761939140335,25.92017548,187.69,187.59,9.8158545]
[1761939140537,0.67,187.63,187.59,9.8158545]
[1761939141461,6.09296471,187.63,187.59,4.39288979]
[1761939141759,5.42296471,187.62,187.58,4.39288979]
[1761939142058,0.67,187.62,187.58,4.39288979]
[1761939142363,0.67,187.61,187.58,4.39288979]
[1761939142730,0.67,187.61,187.59,4.39288979]
[1761939143358,0.67,187.61,187.58,9.8158545]
[1761939143648,5.42296471,187.63,187.58,9.8158545]
[1761939143840,0.67,187.62,187.58,9.8158545]
[1761939144847,0.67,187.62,187.58,4.39288979]
[1761939145656,0.67,187.62,187.58,9.8158545]
[1761939145835,20.592,187.69,187.61,9.8158545]
[1761939145836,0.68,187.69,187.61,9.8158545]
[1761939146040,0.68,187.69,187.64,5.42296471]
[1761939146472,0.68,187.69,187.64,10.75229165]
[1761939146644,0.68,187.69,187.65,5.42296471]
[1761939147263,6.10296471,187.72,187.64,5.32932694]
[1761939147432,0.68,187.69,187.66,5.42296471]
[1761939148135,0.68,187.71,187.67,5.42296471]
[1761939148837,0.68,187.71,187.66,5.42296471]
[1761939149038,0.68,187.74,187.7,5.42296471]
[1761939149258,0.68,187.74,187.69,5.42296471]
[1761939149671,0.68,187.74,187.68,4.39288979]
[1761939149966,0.68,187.74,187.69,5.42296471]
[1761939151356,0.68,187.74,187.68,4.39288979]
[1761939151551,0.68,187.74,187.69,5.42296471]
[1761939153575,0.68,187.74,187.69,2.12905472]
[1761939155271,0.68,187.74,187.67,2.12905472]
[1761939155272,2.12905472,187.73,187.67,2.12905472]
[1761939155473,0.68,187.74,187.67,2.12905472]
[1761939155782,0.68,187.73,187.69,2.12905472]
[1761939155947,0.68,187.73,187.7,2.12905472]
[1761939156450,0.68,187.73,187.68,4.39288979]
[1761939156657,0.68,187.73,187.7,2.12905472]
[1761939157259,0.68,187.73,187.69,4.39288979]
[1761939157461,0.68,187.73,187.68,4.39288979]
[1761939157662,0.68,187.73,187.69,2.12905472]
[1761939158068,0.68,187.73,187.68,2.12905472]
[1761939158653,0.68,187.73,187.67,6.52194451]
[1761939159064,0.68,187.73,187.67,2.12905472]
[1761939159357,0.68,187.73,187.68,2.12905472]
[1761939160858,0.68,187.73,187.66,9.72577705]
[1761939161064,17.27773,187.83,187.66,9.72577705]
[1761939161065,0.68,187.75,187.72,2.12905472]
[1761939161255,0.68,187.75,187.71,2.12905472]
[1761939161599,0.68,187.75,187.72,2.12905472]
[1761939161960,0.68,187.75,187.73,2.12905472]
[1761939162270,9.66741568,187.83,187.73,2.12905472]
[1761939162271,0.68,187.8,187.74,2.12905472]
[1761939162588,0.68,187.8,187.73,4.39703753]
[1761939162589,0.68,187.8,187.77,2.12905472]
[1761939163754,0.68,187.8,187.76,2.12905472]
[1761939164284,0.68,187.8,187.75,2.12905472]
[1761939165274,0.68,187.8,187.7,75.11912626]
[1761939165275,2.12905472,187.77,187.72,6.52609225]
[1761939165485,3.32575987,187.76,187.72,4.39703753]
[1761939165863,0.68,187.75,187.71,7.7227974]
[1761939166367,0.68,187.75,187.71,3.32575987]
[1761939167287,0.68,187.75,187.71,8.65310865]
[1761939167676,0.68,187.75,187.71,13.05014618]
[1761939167869,0.68,187.75,187.71,8.65310865]
[1761939168071,0.68,187.75,187.71,13.05014618]
[1761939168389,0.68,187.75,187.71,8.65310865]
[1761939168588,0.68,187.75,187.71,3.32575987]
[1761939169159,0.68,187.75,187.7,7.7227974]
[1761939169961,4.00575987,187.75,187.7,4.39703753]
[1761939170157,3.32575987,187.74,187.7,4.39703753]
[1761939170361,0.68,187.74,187.7,4.39703753]
[1761939170578,0.68,187.73,187.7,4.39703753]
[1761939171181,4.00575987,187.73,187.7,4.39703753]
[1761939172276,3.32575987,187.73,187.7,4.39703753]
[1761939172587,4.00575987,187.73,187.7,4.39703753]
[1761939173694,0.68,187.72,187.7,4.39703753]
[1761939173871,4.00575987,187.72,187.7,4.39703753]
[1761939175787,0.68,187.72,187.7,4.39703753]
[1761939176111,4.03575987,187.71,187.68,4.39703753]
[1761939176276,3.32575987,187.69,187.68,4.39703753]
[1761939176596,3.32575987,187.69,187.67,4.39703753]
[1761939176892,3.32575987,187.68,187.67,4.39703753]
[1761939177099,0.71,187.75,187.67,8.65426202]
[1761939177271,4.03575987,187.75,187.7,7.71709603]
[1761939177608,0.71,187.74,187.71,4.39133616]
[1761939177974,4.03575987,187.74,187.71,4.39133616]
[1761939178190,4.03575987,187.74,187.7,4.39133616]
[1761939178581,0.71,187.74,187.7,9.71882149]
[1761939179200,0.71,187.77,187.71,3.32575987]
[1761939179502,4.03575987,187.77,187.71,3.32575987]
[1761939179806,0.71,187.78,187.72,3.32575987]
[1761939179978,0.71,187.78,187.71,4.6756593]
[1761939179979,3.32575987,187.75,187.71,4.39133616]
[1761939180177,3.32575987,187.75,187.7,9.71882149]
[1761939180501,4.03575987,187.74,187.7,4.39133616]
[1761939180669,3.32575987,187.73,187.7,4.39133616]
[1761939180874,0.71,187.73,187.72,500.0]
[1761939181074,3.97305227,187.79,187.72,500.0]
[1761939181304,25.91702344,187.8,187.72,500.0]
[1761939181305,0.71,187.73,187.72,500.0]
[1761939182605,20.592,187.8,187.72,500.0]
[1761939182788,4.03575987,187.77,187.72,504.39546173]
[1761939183113,3.32575987,187.76,187.72,500.0]
[1761939183278,9.66741568,187.83,187.74,3.32575987]
[1761939183488,9.66741568,187.83,187.77,3.32575987]
[1761939183489,4.6849211,187.82,187.77,3.32575987]
[1761939183688,0.71,187.82,187.77,3.32575987]
[1761939183894,0.71,187.81,187.77,3.32575987]
[1761939184105,12.99317555,187.83,187.77,3.32575987]
[1761939184305,9.66741568,187.83,187.81,3.32575987]
[1761939184508,9.66741568,187.83,187.82,8.65000648]
[1761939185422,9.66741568,187.83,187.82,13.54786463]
[1761939186201,9.66741568,187.83,187.82,5.32424661]
[1761939186402,9.66741568,187.83,187.82,13.54786463]
[1761939186608,9.66741568,187.83,187.82,17.94332636]
[1761939187106,9.66741568,187.83,187.82,13.54786463]
[1761939188312,9.66741568,187.83,187.82,4.3909297]
[1761939188489,9.66741568,187.83,187.8,4.3909297]
[1761939188921,8.93361802,187.82,187.8,4.3909297]
[1761939189099,8.22361802,187.81,187.77,4.3909297]
[1761939189291,8.93361802,187.81,187.77,4.3909297]
[1761939189518,0.71,187.81,187.77,12.61454772]
[1761939189723,9.66741568,187.83,187.78,8.22361802]
[1761939189896,9.66741568,187.83,187.8,8.22361802]
[1761939190096,9.66741568,187.83,187.77,4.3909297]
[1761939190097,9.66741568,187.83,187.79,4.3909297]
[1761939190320,9.66741568,187.83,187.8,4.3909297]
[1761939190321,8.22361802,187.81,187.8,4.3909297]
[1761939190514,8.22361802,187.81,187.74,50.677466]
[1761939190515,8.22361802,187.81,187.76,4.3909297]
[1761939190702,0.71,187.82,187.76,4.3909297]
[1761939190703,8.22361802,187.78,187.76,4.3909297]
[1761939191101,0.71,187.78,187.76,4.3909297]
[1761939191299,8.22361802,187.79,187.77,4.3909297]
[1761939191732,9.66741568,187.83,187.77,4.3909297]
[1761939191733,8.22361802,187.8,187.77,4.3909297]
[1761939191931,8.93361802,187.81,187.77,4.3909297]
[1761939192115,8.22361802,187.81,187.77,4.3909297]
[1761939192315,0.71,187.8,187.77,4.3909297]
[1761939192717,8.22361802,187.82,187.77,4.3909297]
[1761939192920,8.93361802,187.82,187.77,4.3909297]
[1761939193122,0.71,187.81,187.77,4.3909297]
[1761939193633,0.71,187.81,187.77,9.71659322]
[1761939193836,0.71,187.81,187.77,4.3909297]
[1761939194523,8.22361802,187.82,187.77,17.94015049]
[1761939194909,0.71,187.81,187.77,17.94015049]
[1761939195510,0.71,187.81,187.77,4.3909297]
[1761939196203,10.37741568,187.83,187.78,8.22361802]
[1761939196527,0.71,187.82,187.79,4.3909297]
[1761939196729,8.22361802,187.81,187.78,4.3909297]
[1761939196938,0.71,187.82,187.77,4.3909297]
[1761939196939,8.22361802,187.8,187.77,4.3909297]
[1761939197241,8.93361802,187.81,187.77,4.3909297]
[1761939197445,0.71,187.8,187.77,4.3909297]
[1761939198314,9.66741568,187.83,187.78,12.61454772]
[1761939198555,9.66741568,187.83,187.79,4.3909297]
[1761939198960,9.66741568,187.83,187.8,8.22361802]
[1761939199140,9.66741568,187.83,187.81,8.22361802]
[1761939199537,9.66741568,187.83,187.8,4.3909297]
[1761939199736,9.66741568,187.83,187.79,4.3909297]
[1761939199737,0.68,187.82,187.79,4.3909297]
[1761939200551,8.22361802,187.81,187.79,4.3909297]
[1761939200750,8.22361802,187.8,187.78,4.3909297]
[1761939201247,8.22361802,187.81,187.77,4.3909297]
[1761939201958,8.22361802,187.82,187.78,4.3909297]
[1761939202160,17.8910337,187.83,187.78,4.3909297]
[1761939202349,9.66741568,187.83,187.78,4.3909297]
[1761939202550,0.68,187.82,187.78,4.3909297]
[1761939202752,0.68,187.82,187.79,4.3909297]
[1761939203237,8.90361802,187.82,187.79,4.3909297]
[1761939203434,0.68,187.82,187.79,4.3909297]
[1761939204244,9.66741568,187.83,187.8,20.592]
[1761939204563,10.34741568,187.83,187.8,12.61454772]
[1761939205065,10.34741568,187.83,187.82,12.61454772]
[1761939205066,9.66741568,187.83,187.82,12.61454772]
[1761939205644,9.66741568,187.83,187.82,4.3909297]
[1761939205845,36.52099396,187.86,187.82,4.3909297]
[1761939206159,0.69,187.85,187.82,4.3909297]
[1761939207280,9.06845399,187.85,187.83,8.22361802]
[1761939207445,9.06845399,187.85,187.83,3.32188024]
[1761939207768,9.06845399,187.85,187.83,8.64581667]
[1761939207947,9.06845399,187.85,187.84,3.32188024]
[1761939208434,9.06845399,187.85,187.84,3.83188024]
[1761939208657,9.06845399,187.85,187.84,3.32188024]
[1761939209382,9.06845399,187.85,187.84,8.64555996]
[1761939210695,9.06845399,187.85,187.84,4.3909297]
[1761939210864,9.06845399,187.85,187.84,3.32188024]
[1761939211193,9.06845399,187.85,187.84,7.71280994]
[1761939211761,9.06845399,187.85,187.84,75.34648966]
[1761939211990,12.91200673,187.86,187.85,0.51]
[1761939212286,12.91200673,187.86,187.85,4.8989079]
[1761939212495,12.91200673,187.86,187.85,3.83188024]
[1761939213059,12.91200673,187.86,187.84,3.32188024]
[1761939213277,12.91200673,187.86,187.8,4.3889079]
[1761939213278,0.69,187.85,187.8,4.3889079]
[1761939213477,0.69,187.85,187.78,9.71421391]
[1761939213478,8.2272191,187.84,187.78,9.71421391]
[1761939213685,8.2272191,187.84,187.78,13.5525026]
[1761939213886,9.18394471,187.85,187.82,8.2272191]
[1761939214100,9.18394471,187.85,187.83,8.2272191]
[1761939214320,0.69,187.84,187.81,8.2272191]
[1761939214479,0.69,187.84,187.79,8.2272191]
[1761939214875,0.69,187.84,187.8,8.2272191]
[1761939215213,0.69,187.84,187.81,8.2272191]
[1761939215800,9.18394471,187.85,187.83,8.2272191]
[1761939216018,9.18394471,187.85,187.84,8.2272191]
[1761939218100,9.18394471,187.85,187.84,13.55089882]
[1761939218286,9.18394471,187.85,187.84,14.06089882]
[1761939218783,9.18394471,187.85,187.84,14.34522196]
[1761939219309,9.18394471,187.85,187.84,18.73412986]
[1761939220009,9.18394471,187.85,187.84,80.53412986]
[1761939220415,12.91200673,187.86,187.84,84.37244106]
[1761939220592,0.1,187.9,187.87,20.592]
[1761939220794,0.1,187.9,187.89,8.2272191]
[1761939221206,0.1,187.9,187.89,8.7372191]
[1761939221790,0.1,187.9,187.89,8.2272191]
[1761939221994,0.1,187.9,187.89,14.05948212]
[1761939222391,0.1,187.9,187.89,13.54948212]
[1761939222914,0.1,187.9,187.89,14.05948212]
[1761939225420,0.1,187.9,187.89,11.23939881]
[1761939226292,1e-08,187.9,187.89,11.23939881]
[1761939226498,0.1,187.92,187.9,9.78882769]
[1761939226724,0.1,187.92,187.91,5.40713579]
[1761939226895,0.1,187.92,187.91,10.29503412]
[1761939227219,0.1,187.92,187.91,5.91713579]
[1761939227892,0.1,187.92,187.91,10.06879862]
[1761939228093,0.1,187.92,187.91,10.72883234]
[1761939228301,0.1,187.92,187.91,31.32083234]
[1761939228512,0.1,187.92,187.91,15.10617203]
[1761939228788,0.1,187.92,187.91,4.37733969]
[1761939228994,0.1,187.92,187.91,10.72883234]
[1761939229226,0.1,187.92,187.91,15.61617203]
[1761939229424,0.1,187.92,187.91,36.49249517]
[1761939229635,0.1,187.92,187.91,21.31198317]
[1761939230424,0.1,187.92,187.91,32.11515548]
[1761939230638,0.69,188.12,188.02,2.78279601]
[1761939230808,3.96191237,188.11,188.02,23.37479601]
[1761939231118,0.69,188.06,188.02,2.78279601]
[1761939231492,0.69,188.06,188.02,8.1899318]
[1761939231690,0.69,188.06,188.02,2.78279601]
[1761939231895,0.69,188.06,188.02,8.1899318]
[1761939232112,0.69,188.08,188.05,5.40713579]
[1761939232336,3.95767484,188.17,188.03,0.4]
[1761939232627,0.69,188.22,188.06,20.87632314]
[1761939232805,1.99999999,188.26,188.06,4.65909837]
[1761939232806,3.95197852,188.21,188.06,4.65909837]
[1761939233124,0.69,188.25,188.05,20.592]
[1761939233125,3.95197852,188.2,188.05,24.96677523]
[1761939233430,3.95197852,188.19,188.1,5.40713579]
[1761939233593,10.47882769,188.22,188.1,5.40713579]
[1761939233800,3.94574073,188.21,188.06,20.592]
[1761939234114,4.63574073,188.21,188.1,5.40713579]
[1761939234304,4.63574073,188.2,188.06,25.90928029]
[1761939234505,5.40713579,188.17,188.11,5.40713579]
[1761939234715,0.69,188.19,188.13,5.40713579]
[1761939235023,5.40713579,188.17,188.11,5.40713579]
[1761939235229,0.69,188.18,188.1,20.592]
[1761939235521,5.40713579,188.14,188.06,20.592]
[1761939235816,0.72,188.13,188.06,25.90945187]
[1761939236023,0.72,188.13,188.08,5.31688643]
[1761939236226,0.72,188.13,188.11,5.40713579]
[1761939236404,0.72,188.13,188.12,5.40713579]
[1761939236800,0.72,188.13,188.07,0.28432314]
[1761939237000,0.72,188.13,188.05,0.28432314]
[1761939237224,0.72,188.13,188.08,5.40713579]
[1761939237423,0.72,188.13,188.06,20.592]
[1761939237637,0.72,188.13,188.11,2.12014041]
[1761939237814,0.72,188.13,188.05,24.96677523]
[1761939238008,0.72,188.13,188.07,20.592]
[1761939238234,0.72,188.13,188.11,2.12014041]
[1761939238730,2.84014041,188.13,188.05,20.592]
[1761939238936,9.78882769,188.18,188.07,2.12014041]
[1761939238937,0.72,188.12,188.07,2.12014041]
[1761939239139,2.12014041,188.11,188.05,2.12014041]
[1761939239312,2.12014041,188.11,188.06,2.12014041]
[1761939239508,0.72,188.1,188.06,2.12014041]
[1761939239711,0.72,188.1,188.02,0.28432314]
[1761939239712,0.72,188.1,188.09,2.12014041]
[1761939240028,0.72,188.1,188.08,2.12014041]
[1761939240339,0.72,188.14,188.09,2.12014041]
[1761939240506,0.72,188.14,188.12,2.12014041]
[1761939240715,5.31260016,188.24,188.13,2.12014041]
[1761939241028,0.72,188.23,188.13,20.592]
[1761939241246,0.72,188.23,188.18,2.12014041]
[1761939241247,2.84014041,188.23,188.18,2.12014041]
[1761939241403,0.72,188.22,188.14,2.12014041]
[1761939241728,0.72,188.22,188.13,2.12014041]
[1761939241912,2.12014041,188.21,188.16,2.12014041]
[1761939242114,2.12014041,188.19,188.13,20.592]
[1761939242322,2.84014041,188.18,188.13,20.592]
[1761939242534,2.84014041,188.18,188.09,0.28432314]
[1761939242535,2.12014041,188.17,188.12,2.12014041]
[1761939242838,0.72,188.17,188.12,22.71214041]
[1761939243010,0.72,188.16,188.12,22.71214041]
[1761939243209,2.84014041,188.16,188.09,24.96677523]
[1761939243433,0.72,188.16,188.09,24.96677523]
[1761939243633,2.84014041,188.15,188.1,2.12014041]
[1761939243950,2.12014041,188.14,188.09,22.71214041]
[1761939244114,0.72,188.14,188.09,22.71214041]
[1761939244317,0.72,188.13,188.09,22.71214041]
[1761939244516,0.72,188.13,188.1,2.12014041]
[1761939244716,2.84014041,188.15,188.1,2.12014041]
[1761939245157,0.72,188.14,188.1,2.12014041]
[1761939245333,0.72,188.14,188.08,5.31679184]
[1761939245536,0.72,188.17,188.13,5.39773504]
[1761939245744,0.72,188.19,188.13,20.592]
[1761939246554,0.72,188.19,188.14,5.31519081]
[1761939246927,5.39773504,188.22,188.14,5.31519081]
[1761939246928,0.72,188.22,188.18,5.39773504]
[1761939247231,0.72,188.22,188.19,5.39773504]
[1761939247822,0.72,188.22,188.16,20.592]
[1761939248155,0.72,188.22,188.14,20.592]
[1761939248357,13.2756393,188.32,188.15,0.54216157]
[1761939248527,0.72,188.24,188.19,5.39773504]
[1761939249857,6.11773504,188.24,188.18,25.98973504]
[1761939250017,6.11773504,188.24,188.15,20.592]
[1761939250018,5.39773504,188.21,188.15,20.592]
[1761939250220,0.72,188.23,188.13,9.69022159]
[1761939250420,0.72,188.26,188.17,5.39773504]
[1761939250646,5.39773504,188.22,188.16,5.39773504]
[1761939250852,0.72,188.26,188.13,30.28222159]
[1761939251054,29.28644889,188.43,188.16,20.592]
[1761939251055,1.99999999,188.38,188.16,20.592]
[1761939251270,1.99999999,188.42,188.2,20.592]
[1761939251571,5.39773504,188.28,188.23,5.39773504]
[1761939251776,0.72,188.27,188.23,5.39773504]
[1761939251939,0.72,188.27,188.19,5.05909837]
[1761939251940,0.72,188.27,188.22,5.39773504]
[1761939252272,0.72,188.27,188.22,25.98973504]
[1761939252582,0.72,188.26,188.22,20.592]
[1761939252939,3.91110988,188.33,188.23,5.39773504]
[1761939253279,0.72,188.28,188.22,20.592]
[1761939253438,6.11773504,188.28,188.22,20.592]
[1761939253639,0.72,188.28,188.23,5.39773504]
[1761939253864,0.72,188.31,188.26,5.39773504]
[1761939254078,9.60943642,188.34,188.22,0.68432314]
[1761939254079,9.60943642,188.34,188.25,0.28432314]
[1761939254369,0.72,188.33,188.29,5.39773504]
[1761939254532,9.60943642,188.34,188.31,5.39773504]
[1761939254853,9.60943642,188.34,188.28,20.87632314]
[1761939255050,9.60943642,188.34,188.28,21.27632314]
[1761939255272,9.60943642,188.34,188.33,5.39773504]
[1761939255582,9.60943642,188.34,188.33,0.28432314]
[1761939255734,9.60943642,188.34,188.31,20.87632314]
[1761939256174,9.60943642,188.34,188.33,5.39773504]
[1761939256341,9.60943642,188.34,188.32,0.4]
[1761939256535,9.60943642,188.34,188.33,5.68205818]
[1761939256973,9.60943642,188.34,188.33,6.08205818]
[1761939257278,9.60943642,188.34,188.33,21.13416157]
[1761939257478,9.60943642,188.34,188.33,31.04883341]
[1761939258337,0.1,188.35,188.34,10.07315083]
[1761939258554,0.1,188.35,188.34,31.06515083]
[1761939258755,0.71,188.44,188.36,0.28432314]
[1761939258955,0.71,188.46,188.42,5.39773504]
[1761939259173,9.78882769,188.53,188.36,0.28432314]
[1761939259174,6.10773504,188.45,188.36,0.28432314]
[1761939259344,0.71,188.45,188.39,5.39773504]
[1761939259551,0.71,188.44,188.41,5.39773504]
[1761939259884,0.71,188.44,188.4,5.39773504]
[1761939260060,0.71,188.44,188.36,0.28432314]
[1761939260248,0.71,188.44,188.39,5.39773504]
[1761939260447,0.71,188.44,188.36,0.28432314]
[1761939260679,5.39773504,188.48,188.42,5.39773504]
[1761939260978,5.39773504,188.48,188.36,14.44792606]
[1761939260979,0.71,188.44,188.4,5.39773504]
[1761939261195,0.71,188.44,188.41,5.39773504]
[1761939261379,0.71,188.44,188.4,5.39773504]
[1761939261699,0.71,188.44,188.36,9.96807925]
[1761939261700,6.10773504,188.44,188.38,5.39773504]
[1761939261905,5.39773504,188.41,188.35,5.39773504]
[1761939262107,5.39773504,188.4,188.33,4.26513279]
[1761939262431,28.36040786,188.46,188.34,5.39773504]
[1761939262712,28.36040786,188.46,188.32,9.66286783]
[1761939262713,3.88881306,188.45,188.32,9.66286783]
[1761939262873,5.39773504,188.38,188.32,5.39773504]
[1761939263211,5.39773504,188.34,188.29,4.26513279]
[1761939263511,5.39773504,188.3,188.25,4.26513279]
[1761939263712,0.71,188.39,188.25,5.39773504]
[1761939263874,5.39773504,188.35,188.29,5.39773504]
[1761939264198,5.39773504,188.37,188.31,5.39773504]
[1761939264493,0.71,188.36,188.31,5.39773504]
[1761939264672,23.05758163,188.42,188.34,5.39773504]
[1761939264673,0.71,188.38,188.34,5.39773504]
[1761939264875,0.71,188.38,188.3,4.27253165]
[1761939265072,0.71,188.38,188.34,5.39773504]
[1761939265496,0.71,188.38,188.33,5.39773504]
[1761939265678,5.39773504,188.35,188.29,4.27253165]
[1761939265889,5.39773504,188.34,188.28,9.67026669]
[1761939266092,5.39773504,188.33,188.27,25.98973504]
[1761939266300,0.67,188.41,188.26,4.27253165]
[1761939266497,5.39773504,188.32,188.26,9.67026669]
[1761939267128,6.06773504,188.31,188.26,9.67026669]
[1761939267327,0.67,188.3,188.26,5.39773504]
[1761939267497,6.06773504,188.36,188.29,5.39773504]
[1761939267695,0.67,188.36,188.31,5.39773504]
[1761939267893,0.67,188.36,188.32,5.39773504]
[1761939268094,0.67,188.36,188.31,5.39773504]
[1761939268530,0.67,188.36,188.32,5.39773504]
[1761939268826,0.67,188.36,188.32,4.27253165]
[1761939269029,0.67,188.36,188.32,9.67026669]
[1761939269208,0.67,188.39,188.35,5.39773504]
[1761939269416,0.67,188.39,188.33,4.27253165]
[1761939269953,0.67,188.39,188.35,5.39773504]
[1761939270400,0.67,188.39,188.35,9.67026669]
[1761939270909,0.67,188.39,188.36,5.39773504]
[1761939271112,5.3064589,188.45,188.38,5.39773504]
[1761939271113,0.67,188.44,188.38,5.39773504]
[1761939271299,0.67,188.44,188.4,5.39773504]
[1761939271718,0.67,188.44,188.41,5.39773504]
[1761939272193,0.67,188.44,188.39,4.27253165]
[1761939272399,0.67,188.44,188.41,5.39773504]
[1761939273019,0.67,188.44,188.4,4.27253165]
[1761939273225,5.39773504,188.43,188.39,4.27253165]
[1761939273624,5.39773504,188.4,188.38,4.27253165]
[1761939273868,13.26471056,188.47,188.35,5.84177573]
[1761939273869,0.67,188.39,188.37,4.27253165]
[1761939274769,13.26471056,188.47,188.37,4.27253165]
[1761939274949,6.06773504,188.42,188.37,4.27253165]
[1761939275270,5.39773504,188.4,188.38,4.27253165]
[1761939275472,0.67,188.41,188.38,4.27253165]
[1761939275640,4.58462749,188.45,188.38,4.27253165]
[1761939275840,5.3058927,188.47,188.36,5.39773504]
[1761939275841,5.39773504,188.43,188.39,4.27253165]
[1761939276373,0.67,188.42,188.4,4.27253165]
[1761939276575,0.67,188.42,188.38,4.27253165]
[1761939277373,5.39773504,188.41,188.38,4.27253165]
[1761939277606,5.39773504,188.39,188.34,4.27253165]